[Event "Early-Titled-Tuesday-Blitz-February-27-2024"]
[Site "Chess.com"]
[Date "2024.02.27"]
[Round "5"]
[White "Salem-AR"]
[Black "Janosik"]
[Result "0-1"]
[WhiteElo "3025"]
[BlackElo "2866"]
[TimeControl "180+1"]
[EndTime "8:55:16 PST"]
[Termination "Janosik won on time"]

1. d4 {[%clk 0:03:00.9]} 1... d5 {[%clk 0:02:55.7]} 2. Nf3 {[%clk 0:03:01.1]}
2... Nf6 {[%clk 0:02:54.5]} 3. Bf4 {[%clk 0:03:00.9]} 3... e6 {[%clk 0:02:54.7]}
4. e3 {[%clk 0:03:00.9]} 4... Bd6 {[%clk 0:02:55.2]} 5. Nbd2 {[%clk 0:03:00.6]}
5... O-O {[%clk 0:02:55.7]} 6. Bd3 {[%clk 0:03:00.2]} 6... c5 {[%clk 0:02:54.2]}
7. c3 {[%clk 0:03:00.4]} 7... Qc7 {[%clk 0:02:53.9]} 8. Bxd6 {[%clk 0:02:57.1]}
8... Qxd6 {[%clk 0:02:54.8]} 9. Ne5 {[%clk 0:02:57.2]} 9... b6 {[%clk
0:02:52.6]} 10. Qe2 {[%clk 0:02:54.5]} 10... a5 {[%clk 0:02:52.6]} 11. O-O
{[%clk 0:02:51.6]} 11... Ba6 {[%clk 0:02:52.2]} 12. Bxa6 {[%clk 0:02:49.3]}
12... Rxa6 {[%clk 0:02:52.2]} 13. Rad1 {[%clk 0:02:48.9]} 13... Ra7 {[%clk
0:02:52.3]} 14. f4 {[%clk 0:02:47.5]} 14... Nc6 {[%clk 0:02:38]} 15. g4 {[%clk
0:02:44]} 15... Nd7 {[%clk 0:02:35.5]} 16. g5 {[%clk 0:02:43.5]} 16... f6 {[%clk
0:02:31.8]} 17. gxf6 {[%clk 0:02:40]} 17... gxf6 {[%clk 0:02:32.7]} 18. Nxc6
{[%clk 0:02:37.1]} 18... Qxc6 {[%clk 0:02:32]} 19. Kh1 {[%clk 0:02:34.2]} 19...
f5 {[%clk 0:02:17.8]} 20. Rg1+ {[%clk 0:02:25.5]} 20... Kh8 {[%clk 0:02:16.4]}
21. Nf3 {[%clk 0:02:25.1]} 21... Nf6 {[%clk 0:02:16.5]} 22. Ne5 {[%clk
0:02:23.2]} 22... Qe8 {[%clk 0:02:16.5]} 23. Rg2 {[%clk 0:01:46.2]} 23... Rg8
{[%clk 0:02:11.1]} 24. Rdg1 {[%clk 0:01:36.4]} 24... Rag7 {[%clk 0:02:07.2]} 25.
Rxg7 {[%clk 0:01:12.2]} 25... Rxg7 {[%clk 0:02:08.1]} 26. Rxg7 {[%clk
0:01:12.8]} 26... Kxg7 {[%clk 0:02:08.2]} 27. Qg2+ {[%clk 0:01:13.7]} 27... Kh8
{[%clk 0:01:39.8]} 28. Kg1 {[%clk 0:00:36.6]} 28... Ne4 {[%clk 0:01:26.8]} 29.
h3 {[%clk 0:00:28]} 29... Qh5 {[%clk 0:01:19.1]} 30. Kh2 {[%clk 0:00:27.1]}
30... Qe8 {[%clk 0:01:11.9]} 31. dxc5 {[%clk 0:00:23.8]} 31... bxc5 {[%clk
0:01:11.6]} 32. c4 {[%clk 0:00:24.4]} 32... a4 {[%clk 0:00:59.7]} 33. b3 {[%clk
0:00:22.5]} 33... a3 {[%clk 0:00:56.2]} 34. Qg1 {[%clk 0:00:21.6]} 34... Qh5
{[%clk 0:00:49.4]} 35. Qg2 {[%clk 0:00:21.6]} 35... h6 {[%clk 0:00:37]} 36. Ng6+
{[%clk 0:00:21]} 36... Kg7 {[%clk 0:00:34.1]} 37. Ne5+ {[%clk 0:00:20.3]} 37...
Kh7 {[%clk 0:00:27.7]} 38. Nd7 {[%clk 0:00:16.9]} 38... Qf7 {[%clk 0:00:24.3]}
39. Ne5 {[%clk 0:00:16.6]} 39... Qg7 {[%clk 0:00:24.8]} 40. cxd5 {[%clk
0:00:08.6]} 40... Qxg2+ {[%clk 0:00:20.9]} 41. Kxg2 {[%clk 0:00:08.6]} 41...
exd5 {[%clk 0:00:21.8]} 42. Nd3 {[%clk 0:00:06.1]} 42... c4 {[%clk 0:00:14.7]}
43. bxc4 {[%clk 0:00:05.2]} 43... dxc4 {[%clk 0:00:15.6]} 44. Nb4 {[%clk
0:00:04.8]} 44... Kg6 {[%clk 0:00:14.7]} 45. Kf3 {[%clk 0:00:04.3]} 45... Kf6
{[%clk 0:00:14.5]} 46. Nc2 {[%clk 0:00:05.1]} 46... Ke6 {[%clk 0:00:10.8]} 47.
Nxa3 {[%clk 0:00:05.6]} 47... Kd5 {[%clk 0:00:11.3]} 48. Nc2 {[%clk 0:00:03.2]}
48... c3 {[%clk 0:00:11]} 49. a4 {[%clk 0:00:03.6]} 49... Kc4 {[%clk 0:00:11.4]}
50. Nd4 {[%clk 0:00:01.3]} 50... Nc5 {[%clk 0:00:07]} 51. Ke2 {[%clk 0:00:02]}
51... Nxa4 {[%clk 0:00:06.6]} 52. Nxf5 {[%clk 0:00:01.1]} 52... Kb3 {[%clk
0:00:05.7]} 0-1

[Event "Early-Titled-Tuesday-Blitz-February-27-2024"]
[Site "Chess.com"]
[Date "2024.02.27"]
[Round "5"]
[White "Zohid6"]
[Black "Kildepiotr"]
[Result "1-0"]
[WhiteElo "2863"]
[BlackElo "2669"]
[TimeControl "180+1"]
[EndTime "8:55:20 PST"]
[Termination "Zohid6 won by resignation"]

1. e4 {[%clk 0:03:00.9]} 1... g6 {[%clk 0:02:59.9]} 2. d4 {[%clk 0:03:01]} 2...
Bg7 {[%clk 0:03:00.5]} 3. Nc3 {[%clk 0:03:01.8]} 3... c6 {[%clk 0:03:01.1]} 4.
f4 {[%clk 0:03:01.3]} 4... d5 {[%clk 0:03:01.2]} 5. e5 {[%clk 0:03:01.7]} 5...
Nh6 {[%clk 0:03:01.8]} 6. Nf3 {[%clk 0:03:01.1]} 6... Bg4 {[%clk 0:03:01.9]} 7.
Be3 {[%clk 0:03:00.9]} 7... Nf5 {[%clk 0:03:02]} 8. Bf2 {[%clk 0:03:00.8]} 8...
h5 {[%clk 0:03:02.6]} 9. h3 {[%clk 0:02:53.5]} 9... Bxf3 {[%clk 0:03:02.8]} 10.
Qxf3 {[%clk 0:02:53.8]} 10... h4 {[%clk 0:03:03.7]} 11. Bd3 {[%clk 0:02:53.1]}
11... e6 {[%clk 0:03:03.9]} 12. Ne2 {[%clk 0:02:52.9]} 12... Bf8 {[%clk
0:03:02.7]} 13. O-O {[%clk 0:02:50.8]} 13... Nd7 {[%clk 0:02:59.3]} 14. Rac1
{[%clk 0:02:47.1]} 14... b5 {[%clk 0:02:55.7]} 15. b3 {[%clk 0:02:46.6]} 15...
Ba3 {[%clk 0:02:50.1]} 16. Rcd1 {[%clk 0:02:45.4]} 16... Nb6 {[%clk 0:02:49.4]}
17. c4 {[%clk 0:02:44.9]} 17... bxc4 {[%clk 0:02:45.8]} 18. bxc4 {[%clk
0:02:45.8]} 18... Be7 {[%clk 0:02:06.2]} 19. c5 {[%clk 0:02:45.4]} 19... Nd7
{[%clk 0:02:03.2]} 20. Rb1 {[%clk 0:02:45.1]} 20... Qc7 {[%clk 0:01:58.9]} 21.
Rb3 {[%clk 0:01:44]} 21... O-O {[%clk 0:01:56.5]} 22. Rfb1 {[%clk 0:01:44.9]}
22... Rfb8 {[%clk 0:01:56]} 23. g4 {[%clk 0:01:35.1]} 23... hxg3 {[%clk
0:01:55.4]} 24. Nxg3 {[%clk 0:01:34.9]} 24... Nxg3 {[%clk 0:01:49]} 25. Qxg3
{[%clk 0:01:30.3]} 25... Rxb3 {[%clk 0:01:45.7]} 26. Rxb3 {[%clk 0:01:28.6]}
26... Rb8 {[%clk 0:01:42.7]} 27. Bxg6 {[%clk 0:01:27.7]} 27... Rxb3 {[%clk
0:01:36.4]} 28. axb3 {[%clk 0:01:16.2]} 28... fxg6 {[%clk 0:01:33.8]} 29. Qxg6+
{[%clk 0:01:16.3]} 29... Kf8 {[%clk 0:01:33.7]} 30. Qxe6 {[%clk 0:01:05.9]}
30... Ke8 {[%clk 0:01:32.9]} 31. f5 {[%clk 0:01:03.8]} 31... Nf8 {[%clk
0:01:32.2]} 32. Qh6 {[%clk 0:00:59.8]} 32... Bd8 {[%clk 0:01:14.1]} 33. e6
{[%clk 0:00:55.3]} 33... Qh7 {[%clk 0:01:10]} 34. Qxh7 {[%clk 0:00:47.1]} 34...
Nxh7 {[%clk 0:01:10.9]} 35. Kg2 {[%clk 0:00:46.5]} 35... Nf6 {[%clk 0:01:05.5]}
36. Kf3 {[%clk 0:00:43.6]} 36... Ne4 {[%clk 0:01:05.5]} 37. Be3 {[%clk 0:00:43]}
37... Bf6 {[%clk 0:01:01]} 38. Kg4 {[%clk 0:00:40.1]} 38... Be7 {[%clk
0:00:42.2]} 39. Kh5 {[%clk 0:00:33.1]} 39... Bf6 {[%clk 0:00:37.6]} 40. Kg6
{[%clk 0:00:22.2]} 40... Ke7 {[%clk 0:00:37.9]} 41. b4 {[%clk 0:00:20.5]} 41...
a6 {[%clk 0:00:37.2]} 42. Bg1 {[%clk 0:00:17.4]} 42... Ng5 {[%clk 0:00:28.8]}
43. Bh2 {[%clk 0:00:15.6]} 43... Ne4 {[%clk 0:00:21.8]} 44. Bd6+ {[%clk
0:00:15.1]} 44... Ke8 {[%clk 0:00:22.3]} 45. Be5 {[%clk 0:00:12.3]} 45... Bxe5
{[%clk 0:00:22.3]} 46. dxe5 {[%clk 0:00:13.2]} 46... d4 {[%clk 0:00:20.4]} 47.
f6 {[%clk 0:00:13.5]} 47... d3 {[%clk 0:00:18.4]} 48. f7+ {[%clk 0:00:10.6]}
48... Kf8 {[%clk 0:00:16.1]} 49. e7+ {[%clk 0:00:11.2]} 49... Kxe7 {[%clk
0:00:16.1]} 50. Kg7 {[%clk 0:00:11.2]} 50... d2 {[%clk 0:00:16]} 51. f8=Q+
{[%clk 0:00:12.1]} 51... Ke6 {[%clk 0:00:16.6]} 52. Qe8+ {[%clk 0:00:09.8]}
52... Kd5 {[%clk 0:00:13.7]} 53. e6 {[%clk 0:00:08.7]} 53... Kc4 {[%clk
0:00:11.7]} 54. Qd7 {[%clk 0:00:08.1]} 54... Kc3 {[%clk 0:00:07.8]} 55. e7
{[%clk 0:00:08.3]} 55... Nf2 {[%clk 0:00:06.5]} 56. e8=Q {[%clk 0:00:08.4]}
56... Nd3 {[%clk 0:00:07.1]} 57. Qe2 {[%clk 0:00:06.2]} 1-0

[Event "Early-Titled-Tuesday-Blitz-February-27-2024"]
[Site "Chess.com"]
[Date "2024.02.27"]
[Round "5"]
[White "SaiAgni_98"]
[Black "LiamPutnam2008"]
[Result "0-1"]
[WhiteElo "2565"]
[BlackElo "2800"]
[TimeControl "180+1"]
[EndTime "8:55:20 PST"]
[Termination "LiamPutnam2008 won on time"]

1. e4 {[%clk 0:03:00.9]} 1... c5 {[%clk 0:02:57.1]} 2. Nf3 {[%clk 0:03:00.3]}
2... d6 {[%clk 0:02:53.8]} 3. Bb5+ {[%clk 0:02:55.2]} 3... Nc6 {[%clk
0:02:52.6]} 4. O-O {[%clk 0:02:50.6]} 4... Bd7 {[%clk 0:02:51.5]} 5. Re1 {[%clk
0:02:50.1]} 5... a6 {[%clk 0:02:46.5]} 6. Bf1 {[%clk 0:02:50.1]} 6... Nf6 {[%clk
0:02:42.4]} 7. c3 {[%clk 0:02:50.4]} 7... Bg4 {[%clk 0:02:42.5]} 8. h3 {[%clk
0:02:50.1]} 8... Bh5 {[%clk 0:02:36.9]} 9. d3 {[%clk 0:02:39.6]} 9... e6 {[%clk
0:02:34.5]} 10. Bf4 {[%clk 0:02:37.8]} 10... Be7 {[%clk 0:02:31.3]} 11. Nbd2
{[%clk 0:02:37.9]} 11... O-O {[%clk 0:02:30.4]} 12. g4 {[%clk 0:02:33]} 12...
Bg6 {[%clk 0:02:30.5]} 13. d4 {[%clk 0:02:33.4]} 13... cxd4 {[%clk 0:02:20.6]}
14. cxd4 {[%clk 0:02:34.3]} 14... d5 {[%clk 0:02:21.3]} 15. exd5 {[%clk
0:02:18.9]} 15... Nxd5 {[%clk 0:02:13.8]} 16. Bg3 {[%clk 0:02:18.7]} 16... Ndb4
{[%clk 0:02:13.7]} 17. Ne4 {[%clk 0:02:12.9]} 17... Qd5 {[%clk 0:01:56.1]} 18.
Nc3 {[%clk 0:01:58]} 18... Qd7 {[%clk 0:01:52.4]} 19. Rc1 {[%clk 0:01:56.3]}
19... Rfd8 {[%clk 0:01:48.3]} 20. a3 {[%clk 0:01:56.2]} 20... Nd5 {[%clk
0:01:48.4]} 21. Ne5 {[%clk 0:01:48.2]} 21... Nxc3 {[%clk 0:01:33.2]} 22. Rxc3
{[%clk 0:01:33.4]} 22... Nxe5 {[%clk 0:01:20.1]} 23. Bxe5 {[%clk 0:01:31.5]}
23... Rac8 {[%clk 0:01:19.4]} 24. Bg2 {[%clk 0:01:26.3]} 24... b5 {[%clk
0:01:11.1]} 25. Qf3 {[%clk 0:01:03.6]} 25... Bd6 {[%clk 0:00:42.7]} 26. Qb7
{[%clk 0:00:50.6]} 26... Rxc3 {[%clk 0:00:40.5]} 27. bxc3 {[%clk 0:00:50.8]}
27... Bxe5 {[%clk 0:00:34.5]} 28. Qxd7 {[%clk 0:00:34.6]} 28... Rxd7 {[%clk
0:00:33.7]} 29. Rxe5 {[%clk 0:00:35.2]} 29... Kf8 {[%clk 0:00:24.6]} 30. Rc5
{[%clk 0:00:34.5]} 30... Bd3 {[%clk 0:00:21.6]} 31. f4 {[%clk 0:00:23]} 31...
Ke7 {[%clk 0:00:21]} 32. Kf2 {[%clk 0:00:18.2]} 32... Kd8 {[%clk 0:00:19.6]} 33.
Ke3 {[%clk 0:00:17.3]} 33... Bc4 {[%clk 0:00:20.3]} 34. Be4 {[%clk 0:00:17.3]}
34... h6 {[%clk 0:00:19.1]} 35. h4 {[%clk 0:00:17]} 35... Rc7 {[%clk 0:00:17.5]}
36. g5 {[%clk 0:00:16.8]} 36... hxg5 {[%clk 0:00:13.7]} 37. hxg5 {[%clk
0:00:17.7]} 37... Rxc5 {[%clk 0:00:09.5]} 38. dxc5 {[%clk 0:00:18.6]} 38... Kc7
{[%clk 0:00:09.9]} 39. Kd4 {[%clk 0:00:17.5]} 39... f6 {[%clk 0:00:10.2]} 40.
gxf6 {[%clk 0:00:08.4]} 40... gxf6 {[%clk 0:00:11.1]} 41. Bf3 {[%clk 0:00:08.5]}
41... Bb3 {[%clk 0:00:10.7]} 42. Bg2 {[%clk 0:00:06.8]} 42... Ba2 {[%clk
0:00:07.9]} 43. Bh3 {[%clk 0:00:05.5]} 43... Bd5 {[%clk 0:00:07.7]} 44. Bg4
{[%clk 0:00:05.5]} 44... Kc6 {[%clk 0:00:07.6]} 45. Be2 {[%clk 0:00:04.3]} 45...
a5 {[%clk 0:00:04.3]} 46. c4 {[%clk 0:00:04.4]} 46... bxc4 {[%clk 0:00:02.5]}
47. Bxc4 {[%clk 0:00:05.3]} 47... e5+ {[%clk 0:00:03]} 48. fxe5 {[%clk
0:00:05.5]} 48... fxe5+ {[%clk 0:00:03.9]} 49. Kc3 {[%clk 0:00:05.7]} 49... Kxc5
{[%clk 0:00:04.3]} 50. Be2 {[%clk 0:00:05.9]} 50... Bc6 {[%clk 0:00:04.2]} 51.
Bf1 {[%clk 0:00:05.5]} 51... Bb7 {[%clk 0:00:04.4]} 52. Be2 {[%clk 0:00:05.8]}
52... Be4 {[%clk 0:00:04.6]} 53. Bf1 {[%clk 0:00:06.1]} 53... Bf3 {[%clk
0:00:04.7]} 54. Bd3 {[%clk 0:00:06.3]} 54... e4 {[%clk 0:00:04.9]} 55. Bxe4
{[%clk 0:00:04.6]} 55... Bxe4 {[%clk 0:00:04.4]} 56. a4 {[%clk 0:00:02.5]} 56...
Bd5 {[%clk 0:00:03.5]} 57. Kb2 {[%clk 0:00:00.1]} 57... Kb4 {[%clk 0:00:04]} 0-1

[Event "Early-Titled-Tuesday-Blitz-February-27-2024"]
[Site "Chess.com"]
[Date "2024.02.27"]
[Round "5"]
[White "Ishowmoves57"]
[Black "Alimpic"]
[Result "1-0"]
[WhiteElo "2163"]
[BlackElo "2485"]
[TimeControl "180+1"]
[EndTime "8:55:20 PST"]
[Termination "Ishowmoves57 won by checkmate"]

1. e4 {[%clk 0:02:55.3]} 1... c5 {[%clk 0:02:59.6]} 2. b3 {[%clk 0:02:54.4]}
2... g6 {[%clk 0:02:58.1]} 3. Bb2 {[%clk 0:02:54.6]} 3... Nf6 {[%clk 0:02:58.3]}
4. e5 {[%clk 0:02:55.2]} 4... Nd5 {[%clk 0:02:58.6]} 5. e6 {[%clk 0:02:55.7]}
5... f6 {[%clk 0:02:58]} 6. exd7+ {[%clk 0:02:56.3]} 6... Bxd7 {[%clk
0:02:48.4]} 7. Nc3 {[%clk 0:02:53.7]} 7... Bc6 {[%clk 0:02:46.3]} 8. Nf3 {[%clk
0:02:51.8]} 8... Bg7 {[%clk 0:02:40.9]} 9. Nxd5 {[%clk 0:02:46.4]} 9... Bxd5
{[%clk 0:02:39.8]} 10. Bb5+ {[%clk 0:02:46.5]} 10... Nc6 {[%clk 0:02:39.1]} 11.
c4 {[%clk 0:02:41.1]} 11... Bf7 {[%clk 0:02:15.5]} 12. Bxc6+ {[%clk 0:02:39.7]}
12... bxc6 {[%clk 0:02:16.4]} 13. Ng5 {[%clk 0:02:37.2]} 13... Qd3 {[%clk
0:02:08.1]} 14. Nxf7 {[%clk 0:02:34.6]} 14... Kxf7 {[%clk 0:02:08.3]} 15. Qe2
{[%clk 0:02:32.6]} 15... Rhd8 {[%clk 0:02:05.4]} 16. Rd1 {[%clk 0:02:10.5]}
16... e5 {[%clk 0:02:01.3]} 17. Qxd3 {[%clk 0:02:10.4]} 17... Rxd3 {[%clk
0:02:01]} 18. Ke2 {[%clk 0:02:08.8]} 18... Rd7 {[%clk 0:01:51.4]} 19. d3 {[%clk
0:02:06.7]} 19... a5 {[%clk 0:01:51]} 20. Ra1 {[%clk 0:02:04.9]} 20... a4 {[%clk
0:01:49.7]} 21. Bc3 {[%clk 0:02:02.1]} 21... Bf8 {[%clk 0:01:46]} 22. Rhd1
{[%clk 0:01:59.3]} 22... Ke6 {[%clk 0:01:44.4]} 23. Kd2 {[%clk 0:01:56.4]} 23...
h5 {[%clk 0:01:43.3]} 24. Kc2 {[%clk 0:01:56]} 24... Rda7 {[%clk 0:01:35.3]} 25.
Rdb1 {[%clk 0:01:55]} 25... axb3+ {[%clk 0:01:30.7]} 26. axb3 {[%clk 0:01:54.9]}
26... h4 {[%clk 0:01:28.3]} 27. h3 {[%clk 0:01:48.7]} 27... g5 {[%clk
0:01:24.1]} 28. Rxa7 {[%clk 0:01:43.7]} 28... Rxa7 {[%clk 0:01:25]} 29. Ra1
{[%clk 0:01:43.7]} 29... Rxa1 {[%clk 0:01:22.4]} 30. Bxa1 {[%clk 0:01:44.6]}
30... Kf5 {[%clk 0:01:15.4]} 31. Kd2 {[%clk 0:01:42.4]} 31... g4 {[%clk
0:01:12.6]} 32. Ke2 {[%clk 0:01:29.9]} 32... Bh6 {[%clk 0:00:56.6]} 33. Bc3
{[%clk 0:01:24.2]} 33... Bc1 {[%clk 0:00:52]} 34. Ba5 {[%clk 0:01:20.5]} 34...
Bb2 {[%clk 0:00:49]} 35. b4 {[%clk 0:01:13.3]} 35... cxb4 {[%clk 0:00:47]} 36.
Bxb4 {[%clk 0:01:13.3]} 36... Bd4 {[%clk 0:00:45.5]} 37. Bd2 {[%clk 0:01:12.6]}
37... gxh3 {[%clk 0:00:40.8]} 38. gxh3 {[%clk 0:01:11.9]} 38... Kg6 {[%clk
0:00:39.3]} 39. Kf3 {[%clk 0:01:09.2]} 39... f5 {[%clk 0:00:39.4]} 40. Be3
{[%clk 0:01:05.1]} 40... Bc3 {[%clk 0:00:35.1]} 41. Bc5 {[%clk 0:01:02.3]} 41...
Kf6 {[%clk 0:00:34.1]} 42. Bb6 {[%clk 0:01:01.1]} 42... Kg5 {[%clk 0:00:29.7]}
43. Bd8+ {[%clk 0:01:00.9]} 43... Kh5 {[%clk 0:00:30.1]} 44. Be7 {[%clk
0:01:00]} 44... Bd4 {[%clk 0:00:30.2]} 45. Kg2 {[%clk 0:00:58.2]} 45... e4
{[%clk 0:00:26.1]} 46. dxe4 {[%clk 0:00:56.9]} 46... fxe4 {[%clk 0:00:27]} 47.
Kf1 {[%clk 0:00:56.1]} 47... Bc3 {[%clk 0:00:21.4]} 48. Ke2 {[%clk 0:00:53.5]}
48... Bd4 {[%clk 0:00:21.9]} 49. Bd8 {[%clk 0:00:53.5]} 49... c5 {[%clk
0:00:21.2]} 50. Be7 {[%clk 0:00:52.8]} 50... Kg6 {[%clk 0:00:09.5]} 51. Bxh4
{[%clk 0:00:51.2]} 51... Kf5 {[%clk 0:00:08.4]} 52. Bg3 {[%clk 0:00:51]} 52...
Kg5 {[%clk 0:00:08]} 53. f3 {[%clk 0:00:26]} 53... Kf5 {[%clk 0:00:04.1]} 54. h4
{[%clk 0:00:21.1]} 54... exf3+ {[%clk 0:00:02.6]} 55. Kxf3 {[%clk 0:00:21]}
55... Bf6 {[%clk 0:00:03.5]} 56. Bf2 {[%clk 0:00:19.8]} 56... Be7 {[%clk
0:00:03.9]} 57. Ke3 {[%clk 0:00:18.8]} 57... Kg4 {[%clk 0:00:03.8]} 58. Kd3
{[%clk 0:00:19]} 58... Bd6 {[%clk 0:00:02.6]} 59. Be1 {[%clk 0:00:19]} 59... Kf3
{[%clk 0:00:02.4]} 60. h5 {[%clk 0:00:18]} 60... Bf4 {[%clk 0:00:01.5]} 61. Bd2
{[%clk 0:00:17.5]} 61... Be5 {[%clk 0:00:01.5]} 62. h6 {[%clk 0:00:17.8]} 62...
Kg4 {[%clk 0:00:02.2]} 63. h7 {[%clk 0:00:18.2]} 63... Kf5 {[%clk 0:00:02]} 64.
Bc3 {[%clk 0:00:18.5]} 64... Bxc3 {[%clk 0:00:01.3]} 65. Kxc3 {[%clk 0:00:18.7]}
65... Kg6 {[%clk 0:00:02.2]} 66. h8=Q {[%clk 0:00:19.1]} 66... Kf5 {[%clk
0:00:02.4]} 67. Qc8+ {[%clk 0:00:19.8]} 67... Ke4 {[%clk 0:00:03.3]} 68. Qxc5
{[%clk 0:00:20.1]} 68... Kf3 {[%clk 0:00:04.2]} 69. Qd5+ {[%clk 0:00:20.8]}
69... Ke2 {[%clk 0:00:05.1]} 70. c5 {[%clk 0:00:21.4]} 70... Kf2 {[%clk
0:00:06]} 71. c6 {[%clk 0:00:22.3]} 71... Kf1 {[%clk 0:00:06.9]} 72. c7 {[%clk
0:00:23.2]} 72... Kf2 {[%clk 0:00:07.8]} 73. c8=Q {[%clk 0:00:24.1]} 73... Ke2
{[%clk 0:00:08.7]} 74. Qe8+ {[%clk 0:00:24.1]} 74... Kf2 {[%clk 0:00:09.6]} 75.
Qdf7+ {[%clk 0:00:24.1]} 75... Kg3 {[%clk 0:00:09.9]} 76. Qeg8+ {[%clk 0:00:25]}
76... Kh4 {[%clk 0:00:10.5]} 77. Qfh7# {[%clk 0:00:25.9]} 1-0

[Event "Early-Titled-Tuesday-Blitz-February-27-2024"]
[Site "Chess.com"]
[Date "2024.02.27"]
[Round "5"]
[White "FontVella8"]
[Black "AryanTari"]
[Result "0-1"]
[WhiteElo "2707"]
[BlackElo "2938"]
[TimeControl "180+1"]
[EndTime "8:55:23 PST"]
[Termination "AryanTari won on time"]

1. Nf3 {[%clk 0:03:00.6]} 1... d5 {[%clk 0:02:52.6]} 2. b3 {[%clk 0:03:00.2]}
2... Bg4 {[%clk 0:02:48.3]} 3. Bb2 {[%clk 0:03:01.1]} 3... Bxf3 {[%clk
0:02:46.6]} 4. exf3 {[%clk 0:03:02]} 4... e6 {[%clk 0:02:46.5]} 5. g3 {[%clk
0:03:02.6]} 5... Nf6 {[%clk 0:02:43.5]} 6. Bg2 {[%clk 0:03:02.9]} 6... Nbd7
{[%clk 0:02:42.7]} 7. O-O {[%clk 0:03:03.3]} 7... g6 {[%clk 0:02:42.6]} 8. d3
{[%clk 0:03:03.3]} 8... Bg7 {[%clk 0:02:42.6]} 9. Nd2 {[%clk 0:03:03]} 9... O-O
{[%clk 0:02:42.8]} 10. f4 {[%clk 0:03:03.3]} 10... a5 {[%clk 0:02:42.9]} 11. a3
{[%clk 0:03:00.5]} 11... c6 {[%clk 0:02:42.4]} 12. Re1 {[%clk 0:03:00.9]} 12...
Qc7 {[%clk 0:02:40.3]} 13. Nf3 {[%clk 0:03:00.9]} 13... c5 {[%clk 0:02:24.3]}
14. Ne5 {[%clk 0:02:59.6]} 14... d4 {[%clk 0:02:20.2]} 15. a4 {[%clk 0:02:42.9]}
15... Rad8 {[%clk 0:01:58.3]} 16. Qe2 {[%clk 0:02:11.4]} 16... Nd5 {[%clk
0:01:52.3]} 17. h4 {[%clk 0:01:53.1]} 17... Nxe5 {[%clk 0:01:30.4]} 18. fxe5
{[%clk 0:01:52.9]} 18... h5 {[%clk 0:01:30.8]} 19. Qe4 {[%clk 0:01:44.3]} 19...
Nb4 {[%clk 0:01:26.8]} 20. Re2 {[%clk 0:01:44.2]} 20... b6 {[%clk 0:01:23.9]}
21. Bc1 {[%clk 0:01:33]} 21... Nd5 {[%clk 0:01:13.7]} 22. Bd2 {[%clk 0:01:30.9]}
22... Nc3 {[%clk 0:01:12]} 23. Bxc3 {[%clk 0:01:28.7]} 23... dxc3 {[%clk
0:01:12.9]} 24. Rae1 {[%clk 0:01:26.9]} 24... Rd4 {[%clk 0:01:12.7]} 25. Qc6
{[%clk 0:01:26.6]} 25... Qb8 {[%clk 0:01:11.3]} 26. f4 {[%clk 0:01:16.3]} 26...
Rfd8 {[%clk 0:00:58]} 27. Qb7 {[%clk 0:01:09]} 27... Qxb7 {[%clk 0:00:56.3]} 28.
Bxb7 {[%clk 0:01:09.9]} 28... Bf8 {[%clk 0:00:57]} 29. Kg2 {[%clk 0:01:06.7]}
29... Rb4 {[%clk 0:00:55.2]} 30. Ba6 {[%clk 0:00:58.2]} 30... Rbd4 {[%clk
0:00:54]} 31. Bc4 {[%clk 0:00:57.4]} 31... Kg7 {[%clk 0:00:54.2]} 32. Kf3 {[%clk
0:00:57.2]} 32... Be7 {[%clk 0:00:54.2]} 33. Re4 {[%clk 0:00:56.8]} 33... R4d7
{[%clk 0:00:54.8]} 34. Bb5 {[%clk 0:00:51.5]} 34... Rc7 {[%clk 0:00:54.9]} 35.
Rc4 {[%clk 0:00:48.6]} 35... Rcc8 {[%clk 0:00:43.4]} 36. Rxc3 {[%clk 0:00:46.9]}
36... Rd4 {[%clk 0:00:43.2]} 37. Rc4 {[%clk 0:00:46.1]} 37... Rcd8 {[%clk
0:00:43.1]} 38. Rxd4 {[%clk 0:00:39.4]} 38... cxd4 {[%clk 0:00:42.6]} 39. Re4
{[%clk 0:00:34.7]} 39... Bb4 {[%clk 0:00:41]} 40. Bc4 {[%clk 0:00:28.1]} 40...
Kf8 {[%clk 0:00:41]} 41. Re2 {[%clk 0:00:27.3]} 41... Ke7 {[%clk 0:00:40.8]} 42.
g4 {[%clk 0:00:25.8]} 42... hxg4+ {[%clk 0:00:39.1]} 43. Kxg4 {[%clk 0:00:26.5]}
43... Rh8 {[%clk 0:00:39.6]} 44. Rh2 {[%clk 0:00:25.1]} 44... Rh5 {[%clk
0:00:39.4]} 45. Ba6 {[%clk 0:00:19]} 45... Be1 {[%clk 0:00:38.8]} 46. Bb7 {[%clk
0:00:18.3]} 46... Bc3 {[%clk 0:00:37.8]} 47. Bf3 {[%clk 0:00:17.8]} 47... Be1
{[%clk 0:00:37.2]} 48. Be2 {[%clk 0:00:15.7]} 48... Kd7 {[%clk 0:00:35.8]} 49.
Rh1 {[%clk 0:00:09]} 49... Bd2 {[%clk 0:00:36.1]} 50. Kf3 {[%clk 0:00:07.2]}
50... Rf5 {[%clk 0:00:35.1]} 51. h5 {[%clk 0:00:02.6]} 51... Bxf4 {[%clk
0:00:34.6]} 52. Kg4 {[%clk 0:00:01.5]} 52... Bxe5 {[%clk 0:00:33]} 53. h6 {[%clk
0:00:01.9]} 53... Ke7 {[%clk 0:00:30.4]} 54. h7 {[%clk 0:00:02.1]} 54... Bh8
{[%clk 0:00:30.9]} 55. Bf3 {[%clk 0:00:02.5]} 55... e5 {[%clk 0:00:29.9]} 56.
Be4 {[%clk 0:00:02.6]} 56... Rf4+ {[%clk 0:00:30.5]} 57. Kg3 {[%clk 0:00:03.2]}
57... f5 {[%clk 0:00:30.3]} 58. Bd5 {[%clk 0:00:03.7]} 58... Kf6 {[%clk
0:00:30.2]} 59. Re1 {[%clk 0:00:02.7]} 59... Kg5 {[%clk 0:00:29.4]} 60. Kg2
{[%clk 0:00:02.9]} 60... Rg4+ {[%clk 0:00:28.3]} 61. Kf3 {[%clk 0:00:02.8]}
61... Rh4 {[%clk 0:00:29.2]} 62. Bg8 {[%clk 0:00:02.9]} 62... Rh3+ {[%clk
0:00:27]} 63. Kg2 {[%clk 0:00:02.8]} 63... Kg4 {[%clk 0:00:27.4]} 64. Bf7 {[%clk
0:00:02.7]} 64... Rxh7 {[%clk 0:00:24.3]} 65. Bxg6 {[%clk 0:00:02.6]} 65... Rc7
{[%clk 0:00:24.9]} 66. Be8 {[%clk 0:00:02.6]} 66... Rxc2+ {[%clk 0:00:24.1]} 67.
Kh1 {[%clk 0:00:02.8]} 67... e4 {[%clk 0:00:22.1]} 68. dxe4 {[%clk 0:00:02]}
68... d3 {[%clk 0:00:23]} 69. Bd7 {[%clk 0:00:01.5]} 69... d2 {[%clk 0:00:21.1]}
70. Rg1+ {[%clk 0:00:01.4]} 70... Kf4 {[%clk 0:00:21.2]} 71. Bxf5 {[%clk
0:00:01.5]} 71... Rc1 {[%clk 0:00:21.4]} 0-1